fUST/lending_fUST_20251229
["ID","MTS","AMOUNT","RATE_DAILY","PERIOD"]
[399976295,1766962241823,-234.370979,0.00019178,2]
[399976296,1766962241833,-151.0,0.00019178,2]
[399976297,1766962241844,-151.0,0.00019178,2]
[399976298,1766962241853,-151.0,0.00019178,2]
[399976299,1766962241862,-151.0,0.00019178,2]
[399976300,1766962241872,-151.0,0.00019178,2]
[399976301,1766962241881,-151.0,0.00019178,2]
[399976302,1766962241890,-151.0,0.00019178,2]
[399976303,1766962241899,-274.111986,0.00019178,2]
[399976304,1766962241909,-151.0,0.00019178,2]
[399976305,1766962241918,-151.0,0.00019178,2]
[399976306,1766962241927,-151.0,0.00019178,2]
[399976308,1766962241936,-151.0,0.00019178,2]
[399976310,1766962241945,-151.0,0.00019178,2]
[399976312,1766962241954,-151.0,0.00019178,2]
[399976314,1766962241963,-151.0,0.00019178,2]
[399976316,1766962241972,-151.0,0.00019178,2]
[399976318,1766962241981,-151.0,0.00019178,2]
[399976320,1766962241991,-151.0,0.00019178,2]
[399976322,1766962242000,-293.894457,0.00019178,2]
[399976324,1766962242008,-151.0,0.00019178,2]
[399976326,1766962242018,-151.0,0.00019178,2]
[399976328,1766962242027,-151.0,0.00019178,2]
[399976330,1766962242035,-151.0,0.00019178,2]
[399976332,1766962242044,-151.0,0.00019178,2]
[399976334,1766962242054,-151.0,0.00019178,2]
[399976336,1766962242063,-151.0,0.00019178,2]
[399976338,1766962242072,-151.0,0.00019178,2]
[399976340,1766962242080,-151.0,0.00019178,2]
[399976342,1766962242090,-151.0,0.00019178,2]
[399976344,1766962242099,-151.0,0.00019178,2]
[399976346,1766962242108,-151.0,0.00019178,2]
[399976348,1766962242117,-151.0,0.00019178,2]
[399976350,1766962242126,-151.0,0.00019178,2]
[399976352,1766962242136,-151.0,0.00019178,2]
[399976354,1766962242145,-151.0,0.00019178,2]
[399976356,1766962242154,-212.865203,0.00019178,2]
[399976358,1766962242163,-272.685029,0.00019178,2]
[399976360,1766962242172,-272.685029,0.00019178,2]
[399976362,1766962242181,-272.685029,0.00019178,2]
[399976363,1766962242191,-272.685029,0.00019178,2]
[399976366,1766962242200,-272.685029,0.00019178,2]
[399976367,1766962242209,-272.685029,0.00019178,2]
[399976369,1766962242218,-272.685029,0.00019178,2]
[399976371,1766962242227,-272.685029,0.00019178,2]
[399976373,1766962242236,-272.685029,0.00019178,2]
[399976375,1766962242245,-272.685029,0.00019178,2]
[399976377,1766962242255,-272.685029,0.00019178,2]
[399976379,1766962242265,-272.685029,0.00019178,2]
[399976381,1766962242274,-272.685029,0.00019178,2]
[399976383,1766962242283,-272.685029,0.00019178,2]
[399976385,1766962242292,-272.685029,0.00019178,2]
[399976387,1766962242301,-272.685029,0.00019178,2]
[399976389,1766962242310,-151.0,0.00019178,2]
[399976391,1766962242318,-272.685029,0.00019178,2]
[399976392,1766962242327,-151.0,0.00019178,2]
[399976393,1766962242336,-272.685029,0.00019178,2]
[399976394,1766962242345,-151.0,0.00019178,2]
[399976395,1766962242354,-272.685029,0.00019178,2]
[399976396,1766962242362,-151.0,0.00019178,2]
[399976397,1766962242371,-151.0,0.00019178,2]
[399976398,1766962242379,-272.685033,0.00019178,2]
[399976399,1766962242388,-151.0,0.00019178,2]
[399976400,1766962242397,-151.0,0.00019178,2]
[399976401,1766962242406,-151.0,0.00019178,2]
[399976402,1766962242415,-223.0,0.00019178,3]
[399976403,1766962242424,-151.0,0.00019181,2]
[399976404,1766962242433,-289.107225,0.00019181,2]
[399976405,1766962242443,-151.0,0.00019181,2]
[399976406,1766962242451,-151.0,0.00019181,2]
[399976407,1766962242460,-151.0,0.00019181,2]
[399976408,1766962242469,-151.0,0.00019181,2]
[399976409,1766962242478,-221.765393,0.00019181,2]
[399976411,1766962242487,-5888.0,0.00019181,2]
[399976412,1766962242497,-162.23,0.000192,2]
[399976413,1766962242506,-162.45,0.000192,2]
[399976414,1766962242515,-2794.88,0.000192,2]
[399976416,1766962242526,-14283.17,0.000192,2]
[399976418,1766962242536,-151.0,0.000192,2]
[399976420,1766962242548,-151.0,0.000192,2]
[399976422,1766962242558,-151.0,0.000192,2]
[399976424,1766962242568,-151.0,0.000192,2]
[399976426,1766962242578,-151.0,0.000192,2]
[399976428,1766962242588,-151.0,0.000192,2]
[399976430,1766962242598,-151.0,0.000192,2]
[399976432,1766962242609,-151.0,0.000192,2]
[399976434,1766962242619,-151.0,0.000192,2]
[399976436,1766962242629,-151.0,0.000192,2]
[399976438,1766962242640,-5888.0,0.0001924,2]
[399976441,1766962242655,-231.0,0.00019273,2]
[399976443,1766962242664,-167139.90733549,0.00019301,2]
[399976445,1766962242676,-168.149431,0.00019301,2]
[399976447,1766962242686,-151.0,0.00019301,2]
[399976449,1766962242695,-151.0,0.00019301,2]
[399976451,1766962242704,-151.0,0.00019301,2]
[399976453,1766962242714,-151.0,0.00019301,2]
[399976455,1766962242724,-151.0,0.00019301,2]
[399976457,1766962242733,-153.833081,0.00019301,2]
[399976459,1766962242742,-151.0,0.00019301,2]
[399976461,1766962242752,-151.0,0.00019301,2]
[399976463,1766962242761,-151.0,0.00019301,2]
[399976465,1766962242771,-500.0,0.00019315,2]
[399976467,1766962242780,-592.19664758,0.00019315,2]
[399976469,1766962242789,-446.9923912,0.00019323,7]
[399976471,1766962242798,-5888.0,0.00019352,2]
[399976473,1766962242808,-478.506,0.00019369,2]
[399976475,1766962242817,-183.75143185,0.00019369,2]
[399976477,1766962242826,-514.84070869,0.00019383,2]
[399976479,1766962242834,-5888.0,0.00019419,2]
[399976481,1766962242843,-500.0,0.00019452,2]
[399976483,1766962242854,-5888.0,0.0001947,2]
[399976484,1766962242863,-5888.0,0.00019473,2]
[399976486,1766962242873,-5888.0,0.00019483,2]
[399976488,1766962242882,-5888.0,0.0001952,2]
[399976490,1766962242892,-600.0,0.00019561,2]
[399976492,1766962242904,-500.0,0.00019589,2]
[399976495,1766962242913,-874.90693514,0.000196,2]
[399976497,1766962242923,-500.0,0.00019616,3]
[399976498,1766962242933,-500.0,0.00019616,3]
[399976501,1766962242943,-500.0,0.00019616,3]
[399976502,1766962242952,-500.0,0.00019616,3]
[399976504,1766962242962,-500.0,0.00019616,3]
[399976506,1766962242971,-500.0,0.00019616,3]
[399976508,1766962242980,-501.48871118,0.00019616,3]
[399976510,1766962242990,-2155.0,0.00019659,2]
[399976513,1766962243001,-1363.0,0.00019659,2]
[399976515,1766962243010,-627.0,0.00019659,2]
[399976516,1766962243019,-421.811,0.00019659,2]
[399976517,1766962243028,-5888.0,0.00019667,2]
[399976518,1766962243037,-151.0,0.00019667,2]
[399976519,1766962243046,-151.0,0.00019667,2]
[399976520,1766962243055,-151.0,0.00019667,2]
[399976521,1766962243064,-151.0,0.00019667,2]
[399976522,1766962243074,-5888.0,0.00019668,2]
[399976523,1766962243083,-158.238076,0.00019668,2]
[399976524,1766962243092,-151.0,0.00019668,2]
[399976525,1766962243101,-151.0,0.00019668,2]
[399976526,1766962243110,-5888.0,0.00019671,2]
[399976527,1766962243119,-151.0,0.00019687,2]
[399976528,1766962243129,-5888.0,0.00019687,2]
[399976529,1766962243140,-5888.0,0.00019718,2]
[399976530,1766962243151,-500.0,0.00019726,2]
[399976531,1766962243162,-500.0,0.00019863,2]
[399976532,1766962243172,-533.88981491,0.00019931,2]
[399976533,1766962243180,-613.03939875,0.0002,2]
[399976534,1766962243190,-416.57236218,0.0002,2]
[399976535,1766962243199,-4061.05045442,0.0002,2]
[399976536,1766962243210,-2000.0,0.0002,7]
[399976537,1766962243221,-389.749106,0.00020187,2]
[399976538,1766962243230,-225.0,0.00020274,3]
[399976539,1766962243240,-1041.66666667,0.0002032,2]
[399976540,1766962243249,-678.28721055,0.00020359,2]
[399976541,1766962243259,-553.64373807,0.00020479,2]
[399976542,1766962243269,-1954.389053,0.00020548,2]
[399976543,1766962243278,-162.45,0.000206,2]
[399976544,1766962243288,-2794.88,0.000206,2]
[399976545,1766962243296,-14283.17,0.000206,2]
[399976546,1766962243305,-151.0,0.000206,2]
[399976547,1766962243316,-152.601321,0.000206,2]
[399976548,1766962243326,-151.0,0.000206,2]
[399976549,1766962243335,-174.786507,0.000206,2]
[399976550,1766962243345,-410.0,0.00020637,2]
[399976551,1766962243354,-13937.24,0.000207,3]
[399976552,1766962243366,-501.59577327,0.000208,2]
[399976553,1766962243375,-410.0,0.00020973,2]
[399976554,1766962243385,-150.0,0.00021,2]
[399976555,1766962243395,-78804.01801567,0.00021,2]
[399976556,1766962243405,-151.0,0.00021,2]
[399976557,1766962243414,-574.12855637,0.00021027,2]
[399976558,1766962243423,-7510.6658084,0.00021196,2]
[399976559,1766962243433,-1400.8218339,0.00021196,2]
[399976560,1766962243443,-258.0,0.00021273,2]
[399976561,1766962243452,-227.0,0.0002137,4]
[399976562,1766962243461,-184.63730086,0.00021411,2]
[399976563,1766962243470,-258.832,0.00021442,2]
[399976564,1766962243480,-720.0,0.00021517,10]
[399976565,1766962243489,-595.37131296,0.00021575,2]
[399976566,1766962243498,-1675.8560646,0.00021785,2]
[399976567,1766962243507,-312.5656001,0.00021785,2]
[399976568,1766962243516,-150.0,0.00021918,2]
[399976569,1766962243526,-300.0,0.00022,2]
[399976570,1766962243539,-166.0,0.00022,2]
[399976571,1766962243549,-1181.63,0.00022,7]
[399976572,1766962243558,-617.40005154,0.00022123,2]
[399976573,1766962243567,-376.1809797,0.00022167,2]
[399976574,1766962243578,-376.1809797,0.00022167,2]
[399976575,1766962243587,-162.23,0.000223,7]
[399976576,1766962243597,-162.45,0.000223,7]
[399976577,1766962243607,-2794.88,0.000223,14]
[399976578,1766962243616,-14283.17,0.000223,2]
[399976579,1766962243626,-228.0,0.00022466,7]
[399976580,1766962243636,-300.0,0.00022466,2]
[399976581,1766962243646,-1808.2093343,0.00022652,2]
[399976582,1766962243655,-2155.0,0.00022659,2]
[399976583,1766962243665,-1363.0,0.00022659,2]
[399976584,1766962243674,-627.0,0.00022659,2]
[399976585,1766962243684,-416.0,0.00022659,2]
[399976586,1766962243694,-640.24385345,0.00022671,2]
[399976587,1766962243704,-308.6472383,0.00022767,2]
[399976588,1766962243715,-194.2342203,0.00022767,2]
[399976589,1766962243724,-184.0576596,0.00022767,2]
[399976590,1766962243734,-184.0576596,0.00022767,2]
[399976591,1766962243745,-184.0576596,0.00022767,2]
[399976592,1766962243755,-159.96314885,0.000229,2]
[399976593,1766962243764,-376.1809797,0.00022904,2]
[399976594,1766962243774,-376.1809797,0.00022904,2]
[399976595,1766962243783,-376.1809797,0.00022904,2]
[399976596,1766962243792,-376.1809797,0.00022904,2]
[399976597,1766962243801,-376.1809797,0.00022904,2]
[399976598,1766962243810,-376.1809797,0.00022904,2]
[399976599,1766962243818,-376.1809797,0.00022904,2]
[399976600,1766962243828,-70006.32412381,0.00022998,2]
[399976601,1766962243839,-1041.66666667,0.00023,3]
[399976602,1766962243848,-1142.94526403,0.00023014,7]
[399976603,1766962243857,-166.0,0.00023014,7]
[399976604,1766962243867,-575.05756062,0.00023014,2]
[399976605,1766962243876,-772.2600127,0.00023126,2]
[399976606,1766962243886,-159.96314885,0.00023173,2]
[399976607,1766962243897,-663.93287602,0.00023219,2]
[399976608,1766962243906,-500.0,0.00023256,7]
[399976609,1766962243915,-285.0,0.00023273,2]
[399976610,1766962243925,-10000.0,0.00023321,2]
[399976611,1766962243934,-2000.0,0.00023333,7]
[399976612,1766962243944,-1100.0,0.00023401,2]
[399976613,1766962243953,-1100.0,0.00023443,2]
[399976614,1766962243963,-159.96314885,0.00023446,2]
[399976615,1766962243973,-190.50754401,0.00023454,14]
[399976616,1766962243982,-1100.0,0.00023466,2]
[399976617,1766962243991,-1100.0,0.00023481,2]
[399976618,1766962244000,-1100.0,0.00023541,2]
[399976619,1766962244009,-500.0,0.00023547,2]
[399976620,1766962244019,-230.0,0.00023562,10]
[399976621,1766962244028,-500.0,0.00023562,2]
[399976622,1766962244038,-184.0576596,0.00023589,2]
[399976623,1766962244047,-1100.0,0.0002364,2]
[399976624,1766962244057,-864.0,0.00023668,10]
[399976625,1766962244066,-4276.89724105,0.000237,14]
[399976627,1766962244075,-13937.24,0.000237,3]
[399976629,1766962244084,-159.96314885,0.00023719,2]
[399976630,1766962244094,-688.49839244,0.00023767,2]
[399976631,1766962244103,-376.1809797,0.00023863,2]
[399976632,1766962244112,-1100.0,0.00023866,2]
[399976633,1766962244121,-749.99999901,0.0002387,2]
[399976634,1766962244130,-190.50754401,0.00023895,16]
[399976635,1766962244141,-1041.66666667,0.000239,3]
[399976636,1766962244153,-162.45,0.000239,7]
[399976637,1766962244163,-2794.88,0.000239,14]
[399976638,1766962244172,-14283.17,0.000239,2]
[399976639,1766962244182,-13937.24,0.000239,3]
[399976640,1766962244192,-159.96314885,0.00023992,2]
[399976641,1766962244202,-45858.75610286,0.00024,60]
[399976642,1766962245314,-151.0,0.00019178,2]
[399976644,1766962245324,-151.0,0.00019178,2]
[399976646,1766962245334,-151.0,0.00019178,2]
[399976648,1766962245343,-151.0,0.00019178,2]
[399976650,1766962245353,-151.0,0.00019178,2]
[399976651,1766962245363,-151.0,0.00019178,2]
[399976653,1766962245374,-151.0,0.00019178,2]
[399976654,1766962245384,-151.0,0.00019178,2]
[399976655,1766962245393,-151.0,0.00019178,2]
[399976656,1766962245408,-151.0,0.00019178,2]
[399976657,1766962245418,-151.0,0.00019178,2]
[399976658,1766962245428,-151.0,0.00019178,2]
[399976659,1766962245437,-151.0,0.00019178,2]
[399976660,1766962245448,-151.0,0.00019178,2]
[399976661,1766962245457,-151.0,0.00019178,2]
[399976662,1766962245467,-151.0,0.00019178,2]
[399976663,1766962245477,-151.0,0.00019178,2]
[399976664,1766962245487,-287.637864,0.00019178,2]
[399976665,1766962245496,-1279.0039826,0.00022767,2]
[399976666,1766962245506,-3936.91959595,0.00024,60]
[399976667,1766962245515,-1732.89722071,0.00024,2]
[399976668,1766962245524,-464.95458777,0.00024,2]
[399976669,1766962245537,-2976.31694352,0.00024,30]
[399976670,1766962245548,-7810.81022576,0.00024,30]
[399976671,1766962245558,-2000.0,0.00024,2]
[399976672,1766962245568,-500.0,0.00024062,2]
[399976673,1766962245578,-500.0,0.00024082,2]
[399976674,1766962245588,-7697.83132789,0.00024085,2]
[399976675,1766962245597,-1100.0,0.00024112,2]
[399976676,1766962245606,-65323.35460616,0.00024142,2]
[399976677,1766962245630,-842.0,0.00024142,2]
[399976688,1766962246730,-27398.66227658,0.00024142,2]
[399976715,1766962504590,169.0,0.00022894,120]
[399976716,1766962505721,169.0,0.00024038,120]
[399976784,1766963431623,-5000.0,0.00013435,2]
[399976785,1766963431634,-611.0,0.00013435,2]
[399976787,1766963431642,-300.0,0.0001357,2]
[399976789,1766963431652,-300.0,0.0001357,2]
[399976791,1766963431661,-1200.0,0.0001357,2]
[399976793,1766963431670,-8005.42452261,0.00013571,2]
[399976794,1766963431680,-150.0,0.00013594,2]
[399976796,1766963431689,-300.0,0.00013667,2]
[399976798,1766963431698,-1200.0,0.00013668,2]
[399976800,1766963431707,-372.97574021,0.00013668,2]
[399976802,1766963431716,-213.41562697,0.00013668,2]
[399976804,1766963431725,-500.0,0.00013668,2]
[399976806,1766963431735,-500.0,0.00013668,2]
[399976807,1766963431743,-500.0,0.00013668,2]
[399976810,1766963431757,-500.0,0.00013668,2]
[399976812,1766963431769,-163.3440736,0.00013668,2]
[399976813,1766963431778,-500.0,0.00013668,2]
[399976814,1766963431787,-500.0,0.00013668,2]
[399976815,1766963431803,-500.0,0.00013668,2]
[399976816,1766963431813,-259.42542492,0.00013668,2]
[399976818,1766963431823,-494.10831312,0.00013668,2]
[399976821,1766963431832,-406.82131509,0.00013668,2]
[399976823,1766963431842,-500.0,0.00013668,2]
[399976824,1766963431852,-500.0,0.00013668,2]
[399976827,1766963431862,-500.0,0.00013668,2]
[399976829,1766963431874,-500.0,0.00013668,2]
[399976830,1766963431883,-500.0,0.00013668,2]
[399976832,1766963431892,-500.0,0.00013668,2]
[399976835,1766963431901,-500.0,0.00013668,2]
[399976837,1766963431912,-500.0,0.00013668,2]
[399976838,1766963431921,-500.0,0.00013668,2]
[399976840,1766963431930,-500.0,0.00013668,2]
[399976843,1766963431940,-500.0,0.00013668,2]
[399976845,1766963431951,-500.0,0.00013668,2]
[399976846,1766963431960,-500.0,0.00013668,2]
[399976848,1766963431970,-500.0,0.00013668,2]
[399976850,1766963431979,-500.0,0.00013668,2]
[399976852,1766963431988,-500.0,0.00013668,2]
[399976854,1766963431998,-500.0,0.00013668,2]
[399976856,1766963432007,-158.70932936,0.00013668,2]
[399976858,1766963432016,-500.0,0.00013668,2]
[399976860,1766963432025,-500.0,0.00013668,2]
[399976862,1766963432035,-500.0,0.00013668,2]
[399976864,1766963432045,-500.0,0.00013668,2]
[399976866,1766963432054,-300.0,0.00013668,2]
[399976869,1766963432064,-4657.06401119,0.00013669,2]
[399976890,1766963432261,-2000.0,0.00013669,2]
[399976891,1766963432273,-334.121,0.00013669,2]
[399976951,1766963437579,-37681.29656561,0.00013669,2]
[399976953,1766963437588,-300.0,0.00013673,2]
[399976955,1766963437598,-1000.0,0.00013699,2]
[399976957,1766963437607,-500.0,0.00013699,2]
[399976959,1766963437616,-500.0,0.00013699,2]
[399976961,1766963437626,-500.0,0.00013699,2]
[399976963,1766963437635,-500.0,0.00013699,2]
[399976965,1766963437645,-500.0,0.00013699,2]
[399976967,1766963437654,-500.0,0.00013699,2]
[399976969,1766963437663,-500.0,0.00013699,2]
[399976971,1766963437672,-500.0,0.00013699,2]
[399976973,1766963437681,-500.0,0.00013699,2]
[399976975,1766963437691,-500.0,0.00013699,2]
[399976977,1766963437700,-500.0,0.00013699,2]
[399976980,1766963437709,-500.0,0.00013699,2]
[399976982,1766963437719,-500.0,0.00013699,2]
[399976984,1766963437728,-306.74057042,0.00013699,2]
[399976986,1766963437738,-300.0,0.0001397,2]
[399976988,1766963437747,-300.0,0.0001397,2]
[399976990,1766963437756,-300.0,0.0001397,2]
[399976993,1766963437765,-300.0,0.0001397,2]
[399976995,1766963437775,-300.0,0.0001397,2]
[399976997,1766963437784,-300.0,0.0001397,2]
[399976999,1766963437793,-300.0,0.0001397,2]
[399977001,1766963437802,-300.0,0.0001397,2]
[399977002,1766963437811,-300.0,0.0001397,2]
[399977005,1766963437821,-300.0,0.0001397,2]
[399977007,1766963437830,-300.0,0.0001397,2]
[399977009,1766963437840,-300.0,0.0001397,2]
[399977011,1766963437850,-300.0,0.0001397,2]
[399977013,1766963437859,-300.0,0.0001397,2]
[399977015,1766963437873,-300.0,0.0001397,2]
[399977017,1766963437882,-600.0,0.0001397,2]
[399977019,1766963437892,-1000.0,0.00014247,2]
[399977021,1766963437901,-251.57809137,0.00014247,2]
[399977022,1766963437910,-432.82148024,0.00014247,2]
[399977025,1766963437921,-299.37285436,0.00014247,2]
[399977026,1766963437931,-302.22191011,0.00014247,2]
[399977029,1766963437942,-308.0,0.00014873,2]
[399977031,1766963437951,-720.0,0.00015366,2]
[399977033,1766963437960,-177.0,0.00015594,2]
[399977035,1766963437969,-407.29783908,0.00015753,2]
[399977037,1766963437978,-8005.4245226,0.00016404,2]
[399977039,1766963437987,-162.92173802,0.00016803,2]
[399977040,1766963437997,-864.0,0.00016903,2]
[399977043,1766963438006,-204.0,0.00017594,2]
[399977044,1766963438016,-214.0,0.00018411,3]
[399977047,1766963438029,-461.67526834,0.00018524,2]
[399977049,1766963438039,-1000.0,0.00018593,2]
[399977051,1766963438048,-478.75725327,0.00019072,2]
[399977053,1766963438057,-414.168,0.00019178,2]
[399977054,1766963438066,-500.0,0.00019178,2]
[399977056,1766963438075,-401.04,0.00019178,2]
[399977058,1766963438084,-162.23,0.000192,2]
[399977060,1766963438093,-8005.4245226,0.00019236,2]
[399977062,1766963438103,-159.0,0.00019507,3]
[399977064,1766963438112,-231.0,0.00019594,2]
[399977066,1766963438121,-496.47127164,0.0001962,2]
[399977068,1766963438131,-500.0,0.00019726,2]
[399977070,1766963438140,-150.0,0.00019726,2]
[399977072,1766963438150,-150.0,0.00019726,2]
[399977074,1766963438159,-500.0,0.00019863,2]
[399977076,1766963438168,-150.0,0.00019863,2]
[399977078,1766963438177,-500.0,0.0002,2]
[399977080,1766963438186,-500.0,0.00020137,2]
[399977082,1766963438196,-514.84070869,0.00020168,2]
[399977084,1766963438206,-150.0,0.00020213,2]
[399977086,1766963438215,-1363.0,0.00020213,2]
[399977087,1766963438224,-2155.0,0.00020213,2]
[399977088,1766963438233,-627.0,0.00020213,2]
[399977090,1766963438244,-416.0,0.00020213,2]
[399977091,1766963438254,-407.29783908,0.00020254,2]
[399977093,1766963438263,-500.0,0.00020274,2]
[399977095,1766963438273,-1041.66666667,0.0002033,2]
[399977097,1766963438282,-500.0,0.00020411,2]
[399977098,1766963438291,-1000.0,0.00020453,2]
[399977099,1766963438307,-244.0,0.00020453,2]
[399977100,1766963438317,-500.0,0.00020548,2]
[399977101,1766963438326,-160.0,0.00020603,3]
[399977102,1766963438335,-500.0,0.00020685,2]
[399977103,1766963438344,-533.88981491,0.00020716,2]
[399977104,1766963438354,-874.0,0.000208,2]
[399977105,1766963438363,-500.0,0.00020822,2]
[399977106,1766963438372,-500.0,0.00020959,2]
[399977107,1766963438381,-150.0,0.00021,2]
[399977108,1766963438391,-500.0,0.00021096,2]
[399977109,1766963438400,-500.0,0.00021233,2]
[399977110,1766963438409,-553.64373807,0.00021264,2]
[399977111,1766963438419,-500.0,0.0002137,2]
[399977112,1766963438428,-500.0,0.00021507,2]
[399977113,1766963438437,-258.0,0.00021594,2]
[399977114,1766963438447,-500.0,0.00021644,2]
[399977115,1766963438457,-162.0,0.00021699,5]
[399977116,1766963438466,-500.0,0.00021781,2]
[399977117,1766963438475,-574.12855637,0.00021812,2]
[399977118,1766963438484,-500.0,0.00021918,2]
[399977119,1766963438494,-204.0,0.00022055,2]
[399977120,1766963438504,-8005.4245226,0.00022069,2]
[399977121,1766963438513,-595.37131296,0.0002236,2]
[399977122,1766963438523,-1000.0,0.00022498,10]
[399977123,1766963438532,-492.0,0.00022498,10]
[399977124,1766963438541,-398.33305124,0.00022659,2]
[399977125,1766963438551,-663.0,0.000227,2]
[399977126,1766963438560,-663.0,0.00022766,2]
[399977127,1766963438570,-163.0,0.00022795,8]
[399977128,1766963438580,-401.61,0.00022851,10]
[399977129,1766963438590,-259.1,0.00022861,10]
[399977130,1766963438600,-481.93,0.00022861,10]
[399977131,1766963438609,-663.0,0.00022871,2]
[399977132,1766963438619,-617.40005154,0.00022908,2]
[399977133,1766963438628,-663.0,0.00023093,2]
[399977134,1766963438637,-663.0,0.00023094,2]
[399977135,1766963438646,-500.0,0.00023171,2]
[399977136,1766963438656,-800.0,0.00023196,2]
[399977137,1766963438665,-1363.0,0.00023213,2]
[399977138,1766963438675,-2155.0,0.00023213,2]
[399977139,1766963438684,-627.0,0.00023213,2]
[399977140,1766963438694,-416.0,0.00023213,2]
[399977141,1766963438704,-500.0,0.00023237,2]
[399977142,1766963438713,-500.0,0.00023255,2]
[399977143,1766963438722,-500.0,0.00023256,7]
[399977144,1766963438732,-800.0,0.00023267,2]
[399977145,1766963438741,-663.0,0.00023287,2]
[399977146,1766963438751,-800.0,0.00023292,2]
[399977147,1766963438761,-800.0,0.00023298,2]
[399977148,1766963438770,-414.65678484,0.00023333,7]
[399977149,1766963438779,-663.0,0.0002336,2]
[399977150,1766963438789,-500.0,0.00023365,2]
[399977151,1766963438799,-640.24385345,0.00023456,2]
[399977152,1766963438809,-800.0,0.00023533,2]
[399977153,1766963438819,-663.0,0.00023542,2]
[399977154,1766963438828,-158.33642881,0.0002359,7]
[399977155,1766963438837,-800.0,0.00023591,2]
[399977156,1766963438846,-285.0,0.00023594,2]
[399977157,1766963438855,-663.0,0.00023596,2]
[399977158,1766963438865,-800.0,0.00023637,2]
[399977159,1766963438878,-663.0,0.00023639,2]
[399977160,1766963438887,-800.0,0.00023694,2]
[399977161,1766963438897,-663.0,0.000237,2]
[399977162,1766963438906,-800.0,0.00023724,2]
[399977163,1766963438916,-663.0,0.00023725,2]
[399977164,1766963438924,-520.27,0.00023853,3]
[399977165,1766963438934,-161.41247706,0.00023859,2]
[399977166,1766963438943,-376.1809797,0.00023863,2]
[399977167,1766963438954,-752.1007358,0.0002389,2]
[399977168,1766963438963,-164.0,0.0002389,11]
[399977169,1766963438973,-663.0,0.00023896,2]
[399977170,1766963438982,-204.169731,0.00023899,2]
[399977171,1766963438992,-74197.98228092,0.000239,2]
[399977172,1766963439005,-72391.16867295,0.000239,2]
[399977173,1766963439016,-745.73680158,0.000239,2]
[399977174,1766963439027,-7465.19545329,0.000239,2]
[399977180,1766963439938,-8823.6,0.000239,2]
[399977181,1766963439951,-1029.00146496,0.000239,2]
[399977233,1766963444431,-334.67,0.0002389,10]
[399977234,1766963444443,-67034.17325812,0.000239,2]
[399977238,1766963445452,-13018.84619154,0.000239,2]
[399977239,1766963445467,-8782.27414741,0.000239,2]
[399977243,1766963445803,-287022.09515474,0.000239,2]
[399977244,1766963640193,150.0,8.077e-05,2]
[399977245,1766963704881,150.0,7.55e-05,2]
[399977246,1766963705346,150.0,8.237e-05,2]
[399977268,1766964055778,281.57389894,0.00013172,2]
[399977347,1766964631777,-609.0,0.0001333,2]
[399977349,1766964631787,-150.0,0.00013381,2]
[399977350,1766964631796,-300.0,0.00013698,2]
[399977352,1766964631806,-1200.0,0.00013698,2]